fUSD/lending_fUSD_20260620
["ID","MTS","AMOUNT","RATE_DAILY","PERIOD"]
[425819026,1781934641000,-166.66,0.00025735,2]
[425819100,1781934642000,-23011.56748926,0.00028409,2]
[425819097,1781934642000,-825.14,0.00028397,7]
[425819098,1781934642000,-825.14,0.00028397,7]
[425819099,1781934642000,-825.14,0.00028397,7]
[425819090,1781934642000,-500.0,0.00028397,30]
[425819095,1781934642000,-504.12362656,0.00028397,30]
[425819096,1781934642000,-825.14,0.00028397,7]
[425819092,1781934642000,-500.0,0.00028397,30]
[425819091,1781934642000,-500.0,0.00028397,30]
[425819093,1781934642000,-500.0,0.00028397,30]
[425819102,1781934642000,-366.0,0.00028488,2]
[425819106,1781934642000,-2000.0,0.000286,2]
[425819103,1781934642000,-825.14,0.00028499,7]
[425819107,1781934642000,-154.7,0.0002863,30]
[425819105,1781934642000,-694.9832,0.000286,2]
[425819104,1781934642000,-1197.81519391,0.000286,2]
[425819108,1781934642000,-158.78,0.0002863,30]
[425819113,1781934642000,-500.0,0.00028685,2]
[425819110,1781934642000,-162.7,0.0002863,2]
[425819109,1781934642000,-161.45,0.0002863,2]
[425819111,1781934642000,-157.22,0.0002863,30]
[425819112,1781934642000,-208.8,0.00028647,30]
[425819087,1781934642000,-825.14,0.00028297,7]
[425819101,1781934642000,-586.301994,0.0002848,14]
[425819086,1781934642000,-500.0,0.00028297,30]
[425819074,1781934642000,-1551.1294858,0.000277,2]
[425819089,1781934642000,-500.0,0.00028397,30]
[425819062,1781934642000,-300.0,0.00027397,2]
[425819061,1781934642000,-1500.0,0.00027397,2]
[425819070,1781934642000,-2991.49051684,0.0002742,2]
[425819066,1781934642000,-1500.84218978,0.000274,2]
[425819064,1781934642000,-10136.9,0.00027397,10]
[425819068,1781934642000,-289.45219248,0.000274,2]
[425819063,1781934642000,-1000.0,0.00027397,20]
[425819069,1781934642000,-423.64648916,0.000274,2]
[425819065,1781934642000,-1197.81519391,0.000274,2]
[425819067,1781934642000,-1551.1294858,0.000274,2]
[425819073,1781934642000,-1500.84218978,0.000277,2]
[425819088,1781934642000,-1197.81519391,0.000283,2]
[425819072,1781934642000,-1197.81519391,0.000277,2]
[425819080,1781934642000,-1551.1294858,0.00028,2]
[425819075,1781934642000,-289.45219248,0.000277,2]
[425819081,1781934642000,-289.45219248,0.00028,2]
[425819078,1781934642000,-1197.81519391,0.00028,2]
[425819077,1781934642000,-35173.0,0.00027917,2]
[425819079,1781934642000,-1500.84218978,0.00028,2]
[425819076,1781934642000,-423.64648916,0.000277,2]
[425819082,1781934642000,-423.64648916,0.00028,2]
[425819083,1781934642000,-16219.84225029,0.00028031,2]
[425819084,1781934642000,-166.66,0.00028203,2]
[425819085,1781934642000,-272.6,0.00028267,2]
[425819071,1781934642000,-500.0,0.000275,7]
[425819114,1781934642000,-1197.81519391,0.000288,2]
[425819116,1781934642000,-162.7,0.0002883,7]
[425819118,1781934642000,-378.0,0.00028932,30]
[425819143,1781934642000,-16219.84225029,0.00029305,2]
[425819147,1781934642000,-1000.0,0.00029471,2]
[425819149,1781934642000,-150.0,0.00029534,2]
[425819148,1781934642000,-154.7,0.00029534,30]
[425819150,1781934642000,-1030.0,0.00029698,2]
[425819151,1781934642000,-1068.11,0.00029698,2]
[425819152,1781934642000,-1107.63007,0.00029698,2]
[425819154,1781934642000,-1191.11104074,0.00029698,2]
[425819153,1781934642000,-1148.61238259,0.00029698,2]
[425819156,1781934642000,-1280.88388877,0.00029698,2]
[425819155,1781934642000,-1235.18214925,0.00029698,2]
[425819144,1781934642000,-299.0241243,0.00029372,2]
[425819157,1781934642000,-1328.27659266,0.00029698,2]
[425819159,1781934642000,-1428.38747117,0.00029698,2]
[425819161,1781934642000,-1536.04360648,0.00029698,2]
[425819160,1781934642000,-1481.2378076,0.00029698,2]
[425819164,1781934642000,-1712.93078311,0.00029698,2]
[425819168,1781934642000,-1980.8648231,0.00029698,2]
[425819163,1781934642000,-1651.81367706,0.00029698,2]
[425819165,1781934642000,-1776.30922209,0.00029698,2]
[425819167,1781934642000,-1910.18787185,0.00029698,2]
[425819162,1781934642000,-1592.87721992,0.00029698,2]
[425819166,1781934642000,-1842.0326633,0.00029698,2]
[425819115,1781934642000,-161.45,0.0002883,7]
[425819158,1781934642000,-1377.42282658,0.00029698,2]
[425819146,1781934642000,-371.43347382,0.00029471,30]
[425819169,1781934642000,-2054.15682156,0.00029698,2]
[425819142,1781934642000,-599.7,0.000293,30]
[425819117,1781934642000,-154.7,0.00028931,7]
[425819121,1781934642000,-334.0,0.00028932,30]
[425819122,1781934642000,-158.0,0.00028932,30]
[425819119,1781934642000,-177.0,0.00028932,30]
[425819120,1781934642000,-152.0,0.00028932,30]
[425819123,1781934642000,-245.0,0.00028932,30]
[425819145,1781934642000,-1197.81519391,0.000294,2]
[425819125,1781934642000,-192.0,0.00028937,30]
[425819126,1781934642000,-601.0,0.00028937,30]
[425819128,1781934642000,-161.0,0.00028937,30]
[425819127,1781934642000,-782.0,0.00028937,30]
[425819129,1781934642000,-155.0,0.00028937,30]
[425819124,1781934642000,-155.0,0.00028937,30]
[425819132,1781934642000,-455.83,0.00029,2]
[425819130,1781934642000,-207.65068382,0.00029,30]
[425819136,1781934642000,-1197.81519391,0.000291,2]
[425819135,1781934642000,-162.7,0.00029031,30]
[425819133,1781934642000,-166.66,0.00029025,2]
[425819134,1781934642000,-161.45,0.00029031,30]
[425819139,1781934642000,-154.69,0.00029232,2]
[425819140,1781934642000,-161.45,0.00029232,2]
[425819137,1781934642000,-186.09459873,0.00029132,29]
[425819138,1781934642000,-154.7,0.00029232,2]
[425819141,1781934642000,-162.72,0.00029232,2]
[425819131,1781934642000,-718.0,0.00029,7]
[425819212,1781934643000,-1496.43,0.00030822,120]
[425819210,1781934643000,-299.02412428,0.00030627,2]
[425819211,1781934643000,-1930.17,0.00030685,30]
[425819209,1781934643000,-9999.99,0.0003062,2]
[425819204,1781934643000,-1229.0,0.0003051,2]
[425819206,1781934643000,-934.0,0.0003051,2]
[425819207,1781934643000,-6081.0,0.0003051,2]
[425819205,1781934643000,-250.0,0.0003051,2]
[425819203,1781934643000,-1368.605,0.0003051,2]
[425819208,1781934643000,-16219.84225029,0.00030579,2]
[425819214,1781934643000,-177.0,0.00030932,30]
[425819224,1781934643000,-155.0,0.00030937,30]
[425819219,1781934643000,-160.03766211,0.00030937,30]
[425819216,1781934643000,-334.0,0.00030932,30]
[425819218,1781934643000,-245.0,0.00030932,30]
[425819213,1781934643000,-378.0,0.00030932,30]
[425819217,1781934643000,-158.0,0.00030932,30]
[425819220,1781934643000,-192.0,0.00030937,30]
[425819222,1781934643000,-782.0,0.00030937,30]
[425819221,1781934643000,-601.0,0.00030937,30]
[425819223,1781934643000,-161.0,0.00030937,30]
[425819225,1781934643000,-10823.96711531,0.00031,2]
[425819202,1781934643000,-387.0,0.0003051,2]
[425819215,1781934643000,-152.0,0.00030932,30]
[425819200,1781934643000,-1279.283,0.0003051,2]
[425819180,1781934643000,-782.0,0.00029937,30]
[425819198,1781934643000,-3560.0,0.0003051,2]
[425819172,1781934643000,-177.0,0.00029932,30]
[425819170,1781934643000,-154.7,0.00029835,7]
[425819171,1781934643000,-378.0,0.00029932,30]
[425819173,1781934643000,-152.0,0.00029932,30]
[425819178,1781934643000,-192.0,0.00029937,30]
[425819175,1781934643000,-158.0,0.00029932,30]
[425819174,1781934643000,-334.0,0.00029932,30]
[425819177,1781934643000,-155.0,0.00029937,30]
[425819176,1781934643000,-245.0,0.00029932,30]
[425819227,1781934643000,-825.14,0.0003104,7]
[425819183,1781934643000,-820.91,0.00029993,2]
[425819182,1781934643000,-155.0,0.00029937,30]
[425819181,1781934643000,-161.0,0.00029937,30]
[425819184,1781934643000,-5038.4764506,0.0003,2]
[425819186,1781934643000,-1019.23293504,0.00030037,7]
[425819185,1781934643000,-450.0777,0.00030013,2]
[425819187,1781934643000,-718.0,0.000301,7]
[425819188,1781934643000,-158.79,0.00030136,7]
[425819190,1781934643000,-157.22,0.00030136,7]
[425819189,1781934643000,-154.74,0.00030136,2]
[425819191,1781934643000,-188.70330497,0.00030137,2]
[425819192,1781934643000,-1496.43,0.00030137,120]
[425819194,1781934643000,-272.6,0.00030239,2]
[425819196,1781934643000,-23011.56748926,0.00030421,2]
[425819226,1781934643000,-150.0,0.00031011,2]
[425819179,1781934643000,-601.0,0.00029937,30]
[425819229,1781934643000,-181.408,0.00031051,28]
[425819254,1781934643000,-800.0,0.00032,2]
[425819258,1781934643000,-500.0,0.00032056,60]
[425819261,1781934643000,-189.49,0.00032185,2]
[425819260,1781934643000,-825.14,0.00032145,7]
[425819262,1781934643000,-272.6,0.0003221,5]
[425819263,1781934643000,-292.60949392,0.00032211,30]
[425819265,1781934643000,-412.0,0.0003224,2]
[425819266,1781934643000,-150.0,0.00032277,30]
[425819264,1781934643000,-187.0,0.0003224,2]
[425819269,1781934643000,-150.0,0.00032277,30]
[425819268,1781934643000,-150.0,0.00032277,30]
[425819255,1781934643000,-800.0,0.00032,2]
[425819267,1781934643000,-151.91965983,0.00032277,30]
[425819274,1781934643000,-150.0,0.00032329,2]
[425819272,1781934643000,-585.21898786,0.00032278,30]
[425819273,1781934643000,-150.0,0.00032329,2]
[425819279,1781934643000,-223.14458319,0.00032427,2]
[425819278,1781934643000,-166.9163318,0.00032427,2]
[425819275,1781934643000,-314.0,0.00032413,2]
[425819277,1781934643000,-154.14943664,0.00032427,2]
[425819281,1781934643000,-159.40784068,0.00032433,2]
[425819280,1781934643000,-192.09658512,0.00032427,2]
[425819276,1781934643000,-248.0,0.00032426,2]
[425819228,1781934643000,-4102.092,0.00031051,28]
[425819270,1781934643000,-150.0,0.00032277,30]
[425819257,1781934643000,-261.0,0.00032056,60]
[425819271,1781934643000,-150.0,0.00032277,30]
[425819256,1781934643000,-555.77,0.00032,7]
[425819259,1781934643000,-250.8,0.00032096,2]
[425819230,1781934643000,-200.0,0.0003112,2]
[425819231,1781934643000,-1000.0,0.000312,7]
[425819232,1781934643000,-2000.0,0.000313,2]
[425819233,1781934643000,-825.14,0.00031432,7]
[425819234,1781934643000,-825.14,0.00031432,7]
[425819238,1781934643000,-1832.03,0.00031817,2]
[425819241,1781934643000,-378.0,0.00031932,30]
[425819235,1781934643000,-1547.26023837,0.0003148,28]
[425819240,1781934643000,-299.02412428,0.00031881,2]
[425819239,1781934643000,-16219.84225029,0.00031852,2]
[425819236,1781934643000,-1496.43,0.00031726,120]
[425819237,1781934643000,-150.317321,0.00031732,52]
[425819252,1781934643000,-2729.55046309,0.0003198,28]
[425819242,1781934643000,-177.0,0.00031932,30]
[425819253,1781934643000,-4083.2442491,0.0003198,28]
[425819247,1781934643000,-192.0,0.00031937,30]
[425819251,1781934643000,-155.0,0.00031937,30]
[425819250,1781934643000,-161.0,0.00031937,30]
[425819246,1781934643000,-245.0,0.00031932,30]
[425819245,1781934643000,-158.0,0.00031932,30]
[425819248,1781934643000,-601.0,0.00031937,30]
[425819244,1781934643000,-334.0,0.00031932,30]
[425819243,1781934643000,-152.0,0.00031932,30]
[425819249,1781934643000,-782.0,0.00031937,30]
[425819323,1781934644000,-500.0,0.00032876,120]
[425819319,1781934644000,-500.0,0.00032876,120]
[425819324,1781934644000,-500.0,0.00032876,120]
[425819321,1781934644000,-500.0,0.00032876,120]
[425819318,1781934644000,-500.0,0.00032876,120]
[425819314,1781934644000,-500.0,0.00032876,120]
[425819317,1781934644000,-500.0,0.00032876,120]
[425819316,1781934644000,-500.0,0.00032876,120]
[425819315,1781934644000,-500.0,0.00032876,120]
[425819312,1781934644000,-500.0,0.00032876,120]
[425819327,1781934644000,-153.743992,0.00032877,120]
[425819320,1781934644000,-500.0,0.00032876,120]
[425819325,1781934644000,-1000.0,0.00032877,10]
[425819339,1781934644000,-500.0,0.00032922,120]
[425819322,1781934644000,-500.0,0.00032876,120]
[425819328,1781934644000,-150.0,0.00032877,120]
[425819330,1781934644000,-2009.0,0.000329,7]
[425819331,1781934644000,-258.54091192,0.000329,2]
[425819329,1781934644000,-599.14384248,0.000329,2]
[425819332,1781934644000,-644.3,0.00032903,2]
[425819333,1781934644000,-165.0,0.00032903,2]
[425819335,1781934644000,-644.26,0.00032904,2]
[425819338,1781934644000,-495.0,0.0003292,2]
[425819337,1781934644000,-151.0,0.00032916,2]
[425819334,1781934644000,-644.16,0.00032904,2]
[425819311,1781934644000,-500.0,0.00032876,120]
[425819326,1781934644000,-208.0,0.00032877,120]
[425819313,1781934644000,-500.0,0.00032876,120]
[425819285,1781934644000,-159.95758118,0.00032433,2]
[425819309,1781934644000,-500.0,0.00032876,120]
[425819282,1781934644000,-170.95623899,0.00032433,2]
[425819283,1781934644000,-169.72557642,0.00032433,2]
[425819341,1781934644000,-378.0,0.00032932,30]
[425819284,1781934644000,-171.29797762,0.00032433,2]
[425819286,1781934644000,-164.5741514,0.00032433,2]
[425819288,1781934644000,-5524.7742,0.0003248,28]
[425819287,1781934644000,-169.59490041,0.00032436,2]
[425819290,1781934644000,-800.0,0.000325,2]
[425819293,1781934644000,-608.41738031,0.0003257,2]
[425819289,1781934644000,-1496.43,0.00032493,120]
[425819292,1781934644000,-150.0,0.00032562,2]
[425819294,1781934644000,-1313.81,0.00032586,2]
[425819291,1781934644000,-350.0,0.00032534,2]
[425819295,1781934644000,-495.0,0.00032645,2]
[425819297,1781934644000,-150.0,0.00032675,30]
[425819296,1781934644000,-3000.0,0.0003267,3]
[425819298,1781934644000,-9356.56929562,0.00032689,2]
[425819299,1781934644000,-350.0,0.00032696,2]
[425819301,1781934644000,-5675.2717211,0.0003276,2]
[425819300,1781934644000,-495.0,0.00032704,2]
[425819302,1781934644000,-825.14,0.00032761,7]
[425819304,1781934644000,-170.7112702,0.000328,2]
[425819303,1781934644000,-634.19,0.00032778,120]
[425819305,1781934644000,-396.25522785,0.000328,2]
[425819306,1781934644000,-535.0,0.00032808,2]
[425819307,1781934644000,-9990.40596281,0.00032809,2]
[425819308,1781934644000,-495.0,0.00032831,2]
[425819310,1781934644000,-500.0,0.00032876,120]
[425819340,1781934644000,-825.14,0.00032922,7]
[425819336,1781934644000,-185.13,0.00032914,2]
[425819342,1781934644000,-177.0,0.00032932,30]
[425819373,1781934644000,-225.0,0.00032986,2]
[425819375,1781934644000,-225.0,0.00032986,2]
[425819378,1781934644000,-225.0,0.00032986,2]
[425819371,1781934644000,-225.0,0.00032986,2]
[425819380,1781934644000,-225.0,0.00032986,2]
[425819382,1781934644000,-225.0,0.00032986,2]
[425819381,1781934644000,-225.0,0.00032986,2]
[425819379,1781934644000,-225.0,0.00032986,2]
[425819384,1781934644000,-225.0,0.00032986,2]
[425819383,1781934644000,-353.0,0.00032986,2]
[425819389,1781934644000,-825.14,0.00032999,7]
[425819385,1781934644000,-500.0,0.00032999,120]
[425819390,1781934644000,-825.14,0.00032999,7]
[425819387,1781934644000,-825.14,0.00032999,7]
[425819386,1781934644000,-365.41696827,0.00032999,120]
[425819391,1781934644000,-825.14,0.00032999,7]
[425819392,1781934644000,-825.14,0.00032999,7]
[425819394,1781934644000,-150.0,0.00032999,120]
[425819393,1781934644000,-825.34261012,0.00032999,7]
[425819395,1781934644000,-1000.0,0.00032999,120]
[425819397,1781934644000,-1000.0,0.00032999,120]
[425819398,1781934644000,-5439.63291723,0.00033,2]
[425819399,1781934644000,-500.0,0.00033,7]
[425819400,1781934644000,-500.0,0.00033,7]
[425819402,1781934644000,-150.0,0.00033,7]
[425819396,1781934644000,-1000.0,0.00032999,120]
[425819343,1781934644000,-152.0,0.00032932,30]
[425819377,1781934644000,-225.0,0.00032986,2]
[425819376,1781934644000,-225.0,0.00032986,2]
[425819388,1781934644000,-825.14,0.00032999,7]
[425819370,1781934644000,-225.0,0.00032986,2]
[425819344,1781934644000,-334.0,0.00032932,30]
[425819374,1781934644000,-225.0,0.00032986,2]
[425819350,1781934644000,-155.0,0.00032937,30]
[425819348,1781934644000,-782.0,0.00032937,30]
[425819345,1781934644000,-245.0,0.00032932,30]
[425819346,1781934644000,-192.0,0.00032937,30]
[425819401,1781934644000,-495.98550251,0.00033,7]
[425819351,1781934644000,-985.55534566,0.0003297,2]
[425819347,1781934644000,-601.0,0.00032937,30]
[425819352,1781934644000,-225.0,0.00032986,2]
[425819353,1781934644000,-225.0,0.00032986,2]
[425819355,1781934644000,-225.0,0.00032986,2]
[425819354,1781934644000,-225.0,0.00032986,2]
[425819356,1781934644000,-225.0,0.00032986,2]
[425819349,1781934644000,-161.0,0.00032937,30]
[425819360,1781934644000,-225.0,0.00032986,2]
[425819372,1781934644000,-225.0,0.00032986,2]
[425819357,1781934644000,-225.0,0.00032986,2]
[425819369,1781934644000,-225.0,0.00032986,2]
[425819365,1781934644000,-225.0,0.00032986,2]
[425819366,1781934644000,-225.0,0.00032986,2]
[425819368,1781934644000,-225.0,0.00032986,2]
[425819363,1781934644000,-225.0,0.00032986,2]
[425819367,1781934644000,-225.0,0.00032986,2]
[425819358,1781934644000,-225.0,0.00032986,2]
[425819361,1781934644000,-225.0,0.00032986,2]
[425819364,1781934644000,-225.0,0.00032986,2]
[425819359,1781934644000,-225.0,0.00032986,2]
[425819362,1781934644000,-225.0,0.00032986,2]
[425819419,1781934645000,-16667.57,0.00033,2]
[425819421,1781934645000,-22499.99,0.00033,2]
[425819420,1781934645000,-15000.0,0.00033,2]
[425819422,1781934645000,-15000.0,0.00033,2]
[425819425,1781934645000,-22499.99,0.00033,2]
[425819426,1781934645000,-7949.21,0.00033,2]
[425819428,1781934645000,-22499.99,0.00033,2]
[425819427,1781934645000,-9999.99,0.00033,2]
[425819429,1781934645000,-10000.0,0.00033,2]
[425819424,1781934645000,-22499.99,0.00033,2]
[425819418,1781934645000,-8875.13,0.00033,2]
[425819423,1781934645000,-15000.0,0.00033,2]
[425819413,1781934645000,-18040.67,0.00033,2]
[425819404,1781934645000,-162.63,0.00033,2]
[425819410,1781934645000,-162.61,0.00033,2]
[425819417,1781934645000,-22499.99,0.00033,2]
[425819416,1781934645000,-12499.99,0.00033,2]
[425819412,1781934645000,-162.61,0.00033,2]
[425819415,1781934645000,-9999.99,0.00033,2]
[425819411,1781934645000,-162.61,0.00033,2]
[425819409,1781934645000,-162.61,0.00033,2]
[425819407,1781934645000,-162.61,0.00033,2]
[425819408,1781934645000,-162.61,0.00033,2]
[425819406,1781934645000,-162.61,0.00033,2]
[425819405,1781934645000,-162.61,0.00033,2]
[425819403,1781934645000,-9999.99,0.00033,2]
[425819430,1781934645000,-800.0,0.00033,2]
[425819414,1781934645000,-22500.0,0.00033,2]
[425819432,1781934645000,-15000.0,0.00033,2]
[425819461,1781934645000,-3686.47085897,0.00033,2]
[425819433,1781934645000,-22499.99,0.00033,2]
[425819459,1781934645000,-15000.0,0.00033,2]
[425819462,1781934645000,-8813.51914103,0.00033,2]
[425819460,1781934645000,-15000.0,0.00033,2]
[425819463,1781934645000,-10697.35512808,0.00033,2]
[425819458,1781934645000,-8726.56461773,0.00033,2]
[425819455,1781934645000,-1273.43538227,0.00033,2]
[425819454,1781934645000,-15000.0,0.00033,2]
[425819453,1781934645000,-15000.0,0.00033,2]
[425819452,1781934645000,-19048.59,0.00033,2]
[425819431,1781934645000,-22499.99,0.00033,2]
[425819448,1781934645000,-15000.0,0.00033,2]
[425819450,1781934645000,-12499.99,0.00033,2]
[425819449,1781934645000,-18268.35,0.00033,2]
[425819451,1781934645000,-22499.93,0.00033,2]
[425819445,1781934645000,-10000.0,0.00033,2]
[425819434,1781934645000,-15000.0,0.00033,2]
[425819435,1781934645000,-22499.99,0.00033,2]
[425819447,1781934645000,-22499.94,0.00033,2]
[425819436,1781934645000,-15000.0,0.00033,2]
[425819437,1781934645000,-4159.64,0.00033,2]
[425819438,1781934645000,-22499.99,0.00033,2]
[425819440,1781934645000,-22500.0,0.00033,2]
[425819441,1781934645000,-4868.68,0.00033,2]
[425819442,1781934645000,-8928.54,0.00033,2]
[425819443,1781934645000,-22499.99,0.00033,2]
[425819444,1781934645000,-15000.0,0.00033,2]
[425819446,1781934645000,-12499.97,0.00033,2]
[425819439,1781934645000,-12500.0,0.00033,2]
[425819477,1781934646000,-15000.0,0.00033,2]
[425819469,1781934646000,-20.72536453,0.00032433,2]
[425819471,1781934646000,-11802.63487192,0.00033,2]
[425819472,1781934646000,-15000.0,0.00033,2]
[425819470,1781934646000,-22990.84212473,0.00032433,2]
[425819476,1781934646000,-10000.0,0.00033,2]
[425819473,1781934646000,-1665.54,0.00033,2]
[425819480,1781934646000,-12499.99,0.00033,2]
[425819474,1781934646000,-9999.99,0.00033,2]
[425819475,1781934646000,-22499.99,0.00033,2]
[425819478,1781934646000,-22499.97,0.00033,2]
[425819482,1781934646000,-15000.0,0.00033,2]
[425819481,1781934646000,-22500.0,0.00033,2]
[425819484,1781934646000,-9999.99,0.00033,2]
[425819483,1781934646000,-12499.97,0.00033,2]
[425819486,1781934646000,-8299.57,0.00033,2]
[425819485,1781934646000,-15962.28,0.00033,2]
[425819487,1781934646000,-22499.98,0.00033,2]
[425819479,1781934646000,-18500.62,0.00033,2]
[425819495,1781934647000,-22499.99,0.00033,2]
[425819498,1781934647000,-6791.04,0.00033,2]
[425819499,1781934647000,-22499.99,0.00033,2]
[425819497,1781934647000,-15000.0,0.00033,2]
[425819496,1781934647000,-12499.99,0.00033,2]
[425819489,1781934647000,-9999.98,0.00033,2]
[425819494,1781934647000,-15000.0,0.00033,2]
[425819492,1781934647000,-12499.99,0.00033,2]
[425819490,1781934647000,-12499.97,0.00033,2]
[425819500,1781934647000,-9999.98,0.00033,2]
[425819488,1781934647000,-12499.93,0.00033,2]
[425819491,1781934647000,-22499.98,0.00033,2]
[425819501,1781934647000,-22499.98,0.00033,2]
[425819493,1781934647000,-9999.96,0.00033,2]
[425819503,1781934647000,-15000.0,0.00033,2]
[425819515,1781934647000,-163.14,0.00024658,2]
[425819514,1781934647000,-51.4413242,0.00027137,2]
[425819516,1781934647000,-180.843,0.00027137,2]
[425819512,1781934647000,-3794.0,0.00021576,2]
[425819509,1781934647000,-22499.99,0.00033,2]
[425819511,1781934647000,-17849.03300303,0.00033,2]
[425819513,1781934647000,-2760.75220498,0.00021576,2]
[425819506,1781934647000,-22438.91,0.00033,2]
[425819508,1781934647000,-12499.99,0.00033,2]
[425819510,1781934647000,-12499.99,0.00033,2]
[425819504,1781934647000,-22499.99,0.00033,2]
[425819505,1781934647000,-15000.0,0.00033,2]
[425819507,1781934647000,-9999.97,0.00033,2]
[425819502,1781934647000,-9999.98,0.00033,2]
[425819517,1781934673000,-216.28381402,0.00016338,2]
[425819519,1781934728000,-152.0,0.00016338,2]
[425819520,1781934781000,-3023.62844668,0.00014779,2]
[425819521,1781934794000,-861.99183634,0.00014779,2]
[425819522,1781934808000,-861.99183634,0.00014779,2]
[425819523,1781934822000,-1000.0,0.00014779,2]
[425819524,1781934837000,-1000.0,0.00014779,2]
[425819525,1781934899000,395071.03039915,0.000209,30]
[425819526,1781934966000,-500.0,0.00014777,2]
[425819527,1781935012000,-500.0,0.00014776,2]
[425819529,1781935066000,-500.0,0.00014776,2]
[425819530,1781935120000,-500.0,0.00014776,2]
[425819531,1781935159000,253.68,0.00025148,120]
[425819532,1781935173000,-500.0,0.00014775,2]
[425819533,1781935227000,-500.0,0.00014775,2]
[425819534,1781935281000,-500.0,0.00014774,2]
[425819535,1781935334000,-150.0,0.0001433,2]
[425819536,1781935388000,-500.0,0.00014774,2]
[425819537,1781935442000,-634.0,0.00014,4]
[425819538,1781935674000,-1651.00305437,0.00014,4]
[425819539,1781935693000,-611.95110109,0.00014,4]
[425819540,1781935708000,-611.95110109,0.00014,4]
[425819541,1781935722000,-600.0,0.00014,4]
[425819542,1781935735000,-600.0,0.00014,4]
[425819543,1781935749000,-928.35239756,0.00014,4]
[425819544,1781935750000,-509.34662258,0.00014,4]
[425819545,1781935762000,-113.39572331,0.00014,4]
[425819546,1781935816000,-573.640966,0.0001393,2]
[425819555,1781935831000,-250.0,0.00014,2]
[425819556,1781935831000,-174.63898139,0.00014,2]
[425819560,1781935831000,-527.84833539,0.00014532,2]
[425819559,1781935831000,-176.12,0.00014513,2]
[425819558,1781935831000,-150.0,0.00014193,2]
[425819557,1781935831000,-392.51166461,0.00014,2]
[425819562,1781935832000,-92.88694416,0.00014674,2]
[425819561,1781935832000,-435.32166461,0.00014532,2]
[425819630,1781935838000,-2278.70136935,0.00015807,2]
[425819629,1781935838000,-611.95110109,0.000158,5]
[425819626,1781935838000,-152.48967572,0.00015071,7]
[425819633,1781935838000,-780.37716789,0.00016,2]
[425819632,1781935838000,-228.7345136,0.00015958,7]
[425819625,1781935838000,-150.0,0.00015058,2]
[425819624,1781935838000,-178.0,0.00015,2]
[425819622,1781935838000,-199316.59568154,0.00015,2]
[425819620,1781935838000,-106003.85346318,0.00015,2]
[425819616,1781935838000,-500.0,0.00014999,2]
[425819614,1781935838000,-500.0,0.00014999,2]
[425819631,1781935838000,-2904.68,0.00015814,2]
[425819627,1781935838000,-600.0,0.000154,2]
[425819635,1781935838000,-208.1482903,0.00016,2]
[425819634,1781935838000,-300.0,0.00016,2]
[425819636,1781935838000,-900.0,0.00016001,2]
[425819637,1781935838000,-18325.0361429,0.0001601,2]
[425819639,1781935838000,-32945.23544241,0.00016089,2]
[425819638,1781935838000,-166.66,0.00016073,2]
[425819642,1781935838000,-208.2,0.00016338,2]